bitfinex-derivatives/quotes_ETHF0:USTF0_20250214
["timestamp","ask_amount","ask_price","bid_price","bid_amount"]
[1739559572555,41.5255,2755.8,2755.7,0.72551]
[1739559572967,41.52549,2755.8,2755.6,1.143]
[1739559573263,0.72551,2755.7,2755.6,1.86852]
[1739559573566,40.8,2755.8,2755.7,0.72551]
[1739559573759,41.52551,2755.8,2755.7,0.72551]
[1739559574156,40.8,2755.8,2755.6,1.143]
[1739559574355,0.72551,2755.7,2755.6,1.86853]
[1739559574560,40.8,2755.8,2755.6,1.143]
[1739559574766,0.72551,2755.7,2755.6,1.86852]
[1739559575067,41.52551,2755.8,2755.7,0.72551]
[1739559575364,0.72551,2755.7,2755.6,1.86851]
[1739559575961,41.52551,2755.8,2755.7,0.72551]
[1739559576165,0.72551,2755.7,2755.6,1.86853]
[1739559576764,0.72551,2755.7,2755.6,1.143]
[1739559577066,0.72551,2755.7,2755.6,0.5534]
[1739559577468,0.72551,2755.7,2755.6,1.27894]
[1739559579463,0.72551,2755.7,2755.6,0.72554]
[1739559581071,3.2078,2755.9,2755.8,0.72549]
[1739559581471,0.7255,2755.8,2755.7,0.72549]
[1739559581966,44.0078,2755.9,2755.7,0.72549]
[1739559582171,44.73329,2755.9,2755.8,0.72549]
[1739559582563,44.0078,2755.9,2755.8,0.72549]
[1739559583267,44.73326,2755.9,2755.8,0.72549]
[1739559583870,44.0078,2755.9,2755.8,0.72549]
[1739559584069,40.8,2755.9,2755.8,0.72549]
[1739559585567,41.52548,2755.9,2755.8,0.72549]
[1739559585772,40.8,2755.9,2755.8,0.72549]
[1739559588272,40.8,2755.9,2755.7,1.84469]
[1739559588472,0.72549,2755.8,2755.7,1.84471]
[1739559588973,0.72549,2755.8,2755.7,0.5727]
[1739559589172,0.72553,2755.7,2755.6,0.72553]
[1739559590476,0.72553,2755.7,2755.6,0.72552]
[1739559591076,0.72553,2755.7,2755.3,2.37001]
[1739559591077,0.72555,2755.6,2755.3,2.37001]
[1739559591281,0.72555,2755.6,2755.5,0.72557]
[1739559591677,44.73328,2755.9,2755.8,0.72549]
[1739559591877,44.0078,2755.9,2755.8,0.72549]
[1739559592374,44.73326,2755.9,2755.8,0.72549]
[1739559592577,3.2078,2756.2,2755.7,2.2803]
[1739559592883,3.2078,2756.2,2756.1,0.72541]
[1739559592884,3.93318,2756.2,2756.1,0.72541]
[1739559593182,0.72542,2756.1,2756.0,0.72541]
[1739559593479,44.0078,2756.2,2756.1,0.72541]
[1739559594180,44.73318,2756.2,2756.1,0.72541]
[1739559594575,44.0078,2756.2,2756.1,0.72541]
[1739559594877,44.73318,2756.2,2756.1,1.26271]
[1739559595083,44.0078,2756.2,2756.0,0.5645]
[1739559595584,44.73319,2756.2,2756.1,0.72541]
[1739559595777,44.0078,2756.2,2756.1,0.72541]
[1739559595981,40.8,2756.2,2756.1,0.72541]
[1739559597379,41.52538,2756.2,2756.1,0.72541]
[1739559598284,40.8,2756.2,2756.1,0.72541]
[1739559599186,41.52538,2756.2,2756.1,0.72541]
[1739559599392,40.8,2756.2,2756.1,0.72541]
[1739559600186,0.72534,2756.4,2756.3,0.72533]
[1739559600576,41.52535,2756.4,2756.3,0.72534]
[1739559600781,40.8,2756.4,2756.3,0.72534]
[1739559600986,0.00543734,2756.5,2756.4,0.72533]
[1739559601178,0.00543734,2756.5,2756.4,1.87663]
[1739559601681,0.00543734,2756.5,2756.0,3.7723]
[1739559601979,0.00543734,2756.5,2756.4,0.72533]
[1739559602285,40.8,2757.0,2756.9,0.7252]
[1739559602779,15.33123568,2757.1,2756.9,3.2078]
[1739559602985,15.33123568,2757.1,2757.0,0.72517]
[1739559604484,15.33123568,2757.1,2757.0,3.51815208]
[1739559604682,0.00543734,2757.3,2757.0,2.79298208]
[1739559604877,0.00543734,2757.3,2757.2,0.72512]
[1739559605074,1.31793,2758.0,2757.9,0.72494]
[1739559605075,0.593,2758.0,2757.9,0.72494]
[1739559605280,18.53903568,2758.1,2757.5,1.81256]
[1739559605480,18.53903568,2758.1,2758.0,0.72491]
[1739559605885,15.33123568,2758.1,2758.0,0.72491]
[1739559606185,56.13123568,2758.1,2758.0,0.72491]
[1739559607083,40.8,2758.1,2758.0,0.72491]
[1739559608284,40.8,2758.1,2757.9,0.5824]
[1739559608484,40.8,2758.1,2757.5,3.2078]
[1739559608485,0.72493,2758.0,2757.5,3.2078]
[1739559608685,0.72493,2758.0,2757.7,0.72498]
[1739559608884,44.17238208,2758.1,2757.8,0.72495]
[1739559608885,44.89728208,2758.1,2757.8,0.72495]
[1739559609090,40.8,2758.1,2757.5,3.2078]
[1739559609390,40.8,2758.1,2758.0,0.72491]
[1739559609885,0.72491,2758.0,2757.5,1.714]
[1739559610090,0.72492,2758.0,2757.5,1.714]
[1739559610291,0.72492,2758.0,2757.7,0.72497]
[1739559610492,40.8,2758.1,2758.0,0.72491]
[1739559611090,40.8,2758.1,2757.5,1.714]
[1739559611392,40.8,2758.1,2758.0,0.72491]
[1739559613588,40.8,2758.1,2757.6,0.725]
[1739559613792,0.5885,2758.0,2757.4,0.5826]
[1739559613992,0.725,2757.7,2757.5,0.72503]
[1739559614388,1.1548,2758.0,2757.2,0.5451]
[1739559614389,44.0078,2757.6,2757.2,0.5451]
[1739559614589,2.79298208,2757.5,2756.9,0.5879]
[1739559614789,3.2078,2757.3,2756.9,0.5879]
[1739559614991,0.72516,2757.1,2756.9,0.72519]
[1739559615199,3.2078,2757.3,2756.8,0.00543734]
[1739559615799,1.26024,2757.5,2756.9,1.813]
[1739559615994,0.5352,2757.5,2757.0,3.2078]
[1739559616200,3.2078,2757.3,2757.0,0.5346]
[1739559616402,0.72507,2757.4,2757.2,0.72511]
[1739559616692,0.72511,2757.3,2757.0,0.5346]
[1739559616888,0.5352,2757.5,2757.1,0.72513]
[1739559617089,0.72509,2757.3,2757.1,0.72513]
[1739559617486,3.32818208,2757.5,2756.8,0.00543734]
[1739559617692,6.72598208,2756.9,2755.9,7.81443208]
[1739559617895,2.79298208,2756.6,2756.1,1.713]
[1739559618097,6.72607208,2756.6,2756.3,0.72534]
[1739559618295,3.2078,2756.6,2756.4,0.72531]
[1739559618496,3.2078,2756.6,2756.1,1.713]
[1739559618696,3.93309,2756.6,2756.3,0.72534]
[1739559618900,40.8,2756.5,2756.2,0.72537]
[1739559619099,0.72537,2756.3,2756.1,0.73083734]
[1739559619395,6.00078208,2756.3,2756.1,0.00543734]
[1739559619600,1.31038,2756.2,2756.1,0.00543734]
[1739559620200,42.11038,2756.2,2756.1,0.00543734]
[1739559620400,41.385,2756.2,2756.1,0.00543734]
[1739559620894,3.21323734,2756.6,2756.1,0.00543734]
[1739559621200,3.21323734,2756.6,2756.2,0.72537]
[1739559621201,0.00543734,2756.6,2756.2,0.72537]
[1739559621396,0.72533,2756.4,2756.2,0.72537]
[1739559621702,40.8,2756.5,2756.1,0.00543734]
[1739559621898,0.72538,2756.2,2756.1,0.00543734]
[1739559625396,41.52538,2756.2,2756.1,0.00543734]
[1739559625597,3.2078,2756.3,2756.1,0.00543734]
[1739559625900,3.2078,2756.3,2756.2,0.72538]
[1739559626506,3.93316,2756.3,2756.1,0.00543734]
[1739559626703,3.2078,2756.3,2756.2,0.72538]
[1739559626905,0.00543734,2756.6,2756.2,0.72538]
[1739559627209,0.00543734,2756.6,2756.5,3.51828208]
[1739559627400,44.0078,2757.4,2757.3,0.72509]
[1739559627904,40.8,2757.4,2757.3,0.72509]
[1739559631704,0.73045734,2757.6,2757.1,0.00543734]
[1739559632002,0.73045734,2757.6,2757.4,0.72505]
[1739559632210,41.52506,2757.5,2757.2,0.72511]
[1739559632697,40.8,2757.5,2757.2,0.72511]
[1739559632897,0.72512,2757.2,2757.1,0.00543734]
[1739559633910,0.72512,2757.2,2757.1,0.29603734]
[1739559634715,0.00543734,2757.6,2757.5,0.72504]
[1739559636007,0.73046734,2757.6,2757.4,0.72505]
[1739559636209,0.72507,2757.4,2757.2,2.4381]
[1739559636507,0.72505,2757.5,2757.3,0.72508]
[1739559636708,0.72507,2757.4,2757.2,2.7282]
[1739559636909,3.2078,2757.4,2757.3,0.72509]
[1739559637210,3.2078,2757.4,2757.2,2.0031]
[1739559637211,0.72509,2757.3,2757.2,2.0031]
[1739559637509,0.72509,2757.3,2757.2,2.72822]
[1739559638107,3.93288,2757.4,2757.2,2.72822]
[1739559638314,0.72509,2757.3,2757.2,0.2901]
[1739559639418,41.52509,2757.3,2757.2,0.2901]
[1739559639615,41.52509,2757.3,2757.2,1.4869]
[1739559641412,41.52509,2757.3,2757.2,2.21202]
[1739559641811,41.52509,2757.3,2757.2,1.4869]
[1739559642517,3.93287,2757.4,2757.3,0.72509]
[1739559642912,44.73287,2757.4,2757.3,0.72509]
[1739559643315,0.72509,2757.3,2757.2,2.212]
[1739559643510,44.73288,2757.4,2757.3,0.72509]
[1739559643724,0.72509,2757.3,2757.2,2.212]
[1739559644228,40.8,2757.4,2757.3,0.72509]
[1739559644623,0.00543734,2757.6,2757.2,1.4869]
[1739559644817,0.00543734,2757.6,2757.5,0.72504]
[1739559645021,0.73044734,2757.6,2757.5,0.72504]
[1739559645221,41.53044734,2757.6,2757.5,0.72504]
[1739559645423,40.80543734,2757.6,2757.5,0.72504]
[1739559645826,41.53044734,2757.6,2757.5,0.72504]
[1739559646823,0.72509,2757.3,2757.2,1.4869]
[1739559647023,3.2078,2757.4,2757.3,0.72551]
[1739559647225,3.93287,2757.4,2757.3,0.72551]
[1739559647424,44.73287,2757.4,2757.3,0.72551]
[1739559648122,44.73287,2757.4,2757.3,0.72509]
[1739559648420,0.72509,2757.3,2757.2,2.0391]
[1739559649027,0.72509,2757.3,2757.2,1.4869]
[1739559649823,0.72509,2757.3,2757.2,2.21202]
[1739559650529,0.72509,2757.3,2757.2,1.4869]
[1739559650923,44.73288,2757.4,2757.3,0.72509]
[1739559651241,40.8,2757.4,2757.3,0.72509]
[1739559651529,0.72505,2757.5,2757.4,0.72504]
[1739559652032,41.52505,2757.5,2757.4,0.72504]
[1739559652733,0.72507,2757.4,2757.3,0.5774]
[1739559652930,0.72509,2757.3,2757.2,1.4869]
[1739559653133,0.72509,2757.3,2757.2,2.21202]
[1739559653431,0.72509,2757.4,2757.3,0.72509]
[1739559653731,0.72509,2757.3,2757.2,2.21201]
[1739559653931,41.52509,2757.3,2757.2,2.21201]
[1739559654134,40.8,2757.3,2757.2,2.21201]
[1739559655942,0.00543734,2757.6,2757.5,0.72504]
[1739559656436,40.80543734,2757.6,2757.5,0.72504]
[1739559656633,40.80543734,2757.6,2757.5,1.83524]
[1739559657637,40.80543734,2757.6,2757.5,2.74184]
[1739559658036,41.53044734,2757.6,2757.5,2.74184]
[1739559658432,41.53044734,2757.6,2757.5,0.9066]
[1739559658939,42.64674734,2757.6,2757.5,0.9066]
[1739559659737,41.92173734,2757.6,2757.5,0.9066]
[1739559659931,42.06804734,2757.6,2757.5,0.9066]
[1739559660126,40.80543734,2757.6,2757.5,0.9066]
[1739559660336,0.00543734,2757.6,2757.5,1.63164]
[1739559660740,0.00543734,2757.6,2757.5,7.63259982]
[1739559660940,0.00543734,2757.6,2757.5,8.17339982]
[1739559661139,0.00543734,2757.6,2757.5,8.46389982]
[1739559661739,40.8,2758.0,2757.9,0.72494]
[1739559661938,41.52491,2758.0,2757.9,0.72494]
[1739559662136,40.8,2758.0,2757.9,0.72494]
[1739559662339,3.93259,2758.5,2758.4,0.7248]
[1739559662639,0.7248,2758.4,2758.3,0.72482]
[1739559662836,40.8,2758.4,2758.3,0.72482]
[1739559663031,40.8,2758.4,2758.3,1.01482]
[1739559663434,40.8,2758.4,2758.3,1.01483]
[1739559664241,41.5248,2758.4,2758.3,0.29]
[1739559664443,40.8,2758.4,2758.3,1.01483]
[1739559665146,40.8,2758.4,2758.3,2.15813]
[1739559665449,0.00543734,2758.6,2758.3,2.0237]
[1739559665632,0.7248,2758.4,2758.3,2.0237]
[1739559665836,3.9326,2758.4,2758.3,0.29]
[1739559667046,0.72501,2757.6,2757.3,0.72508]
[1739559667345,3.93281,2757.6,2757.2,0.5611]
[1739559667648,44.73281,2757.6,2757.2,1.28621]
[1739559668144,44.73281,2757.6,2757.5,1.7773]
[1739559668344,40.8,2757.6,2757.5,2.50234]
[1739559669241,0.5611,2758.5,2757.7,1.81244]
[1739559669446,3.21323734,2758.6,2757.9,1.81235]
[1739559669647,40.8,2758.5,2758.0,1.711]
[1739559669841,0.72481,2758.4,2758.2,0.72484]
[1739559670037,0.72492,2758.0,2757.9,1.711]
[1739559670247,0.72492,2758.0,2757.8,1.82155]
[1739559670442,3.7689,2758.3,2757.9,0.72494]
[1739559670443,0.7249,2758.1,2757.9,0.72494]
[1739559671044,3.7689,2758.3,2757.8,1.0966]
[1739559671438,0.7249,2758.1,2757.9,0.72492]
[1739559671736,3.93265,2758.3,2757.8,1.0966]
[1739559671942,3.2078,2758.3,2758.0,0.7249]
[1739559672146,3.93264,2758.3,2758.2,0.72486]
[1739559672443,3.2078,2758.3,2758.2,0.72486]
[1739559673144,40.8,2758.5,2758.4,0.7248]
[1739559674851,40.8,2758.5,2758.2,3.791]
[1739559674852,40.8,2758.5,2758.2,0.5832]
[1739559675150,40.8,2758.5,2758.3,0.72481]
[1739559675151,41.52479,2758.5,2758.3,0.72481]
[1739559675349,40.8,2758.5,2758.2,0.5832]
[1739559675557,0.72488,2758.1,2758.0,1.711]
[1739559675748,0.72488,2758.1,2757.8,5.02935]
[1739559675956,0.72494,2757.9,2757.8,0.5367]
[1739559676247,3.93272,2758.0,2757.9,0.72494]
[1739559676454,3.93272,2758.0,2757.8,1.26165]
[1739559677055,3.2078,2758.0,2757.9,0.72494]
[1739559677251,3.2078,2758.0,2757.8,0.5367]
[1739559677550,3.2078,2758.0,2757.5,5.2711]
[1739559677551,0.72501,2757.7,2757.5,5.99613]
[1739559677753,3.2078,2758.0,2757.5,2.78833]
[1739559678051,3.7659,2758.0,2757.5,2.0633]
[1739559678254,3.2078,2758.0,2757.9,0.72494]
[1739559678452,3.93271,2758.0,2757.9,0.72494]
[1739559678751,3.2078,2758.0,2757.9,0.72494]
[1739559678960,0.72485,2758.3,2757.6,3.2078]
[1739559679250,0.72483,2758.3,2758.2,0.72486]
[1739559679453,0.5421,2758.4,2757.8,1.81237]
[1739559679656,1.26691,2758.4,2757.8,2.93587]
[1739559679851,1.26691,2758.4,2758.2,0.72484]
[1739559680050,1.26692,2758.4,2758.2,0.72484]
[1739559680357,1.26692,2758.4,2758.3,0.72483]
[1739559680852,44.0078,2758.5,2758.2,0.29]
[1739559681056,40.8,2758.5,2758.4,0.7248]
[1739559681654,0.00543734,2758.6,2758.3,1.1216]
[1739559681863,0.00543734,2758.6,2758.5,0.72478]
[1739559682063,40.80543734,2758.6,2758.5,0.72478]
[1739559684656,0.00543734,2758.6,2758.5,0.72478]
[1739559685858,0.00543734,2758.6,2758.2,0.29]
[1739559686662,0.72483,2758.3,2758.2,1.7402]
[1739559687252,5.0551,2758.5,2758.4,0.7248]
[1739559687461,3.2078,2758.5,2758.4,0.7248]
[1739559687760,0.72479,2758.5,2758.4,0.72479]
[1739559688262,0.73021734,2758.6,2758.5,0.72478]
[1739559688459,0.00543734,2758.6,2758.5,0.72478]
[1739559688651,0.00543734,2758.6,2758.5,0.18142]
[1739559688856,0.73018734,2758.6,2758.5,0.18142]
[1739559689158,0.73018734,2758.6,2758.2,2.46504]
[1739559689159,0.72483,2758.3,2758.2,1.7402]
[1739559689353,3.93263,2758.3,2758.2,1.7402]
[1739559689556,3.93263,2758.3,2758.2,0.29]
[1739559690157,3.2078,2758.3,2757.7,0.72498]
[1739559690451,3.02646,2758.0,2757.5,2.2905]
[1739559690659,0.72497,2757.8,2757.7,2.17538]
[1739559690859,3.02646,2758.0,2757.7,1.4504]
[1739559691065,0.72495,2757.9,2757.8,0.72494]
[1739559691465,3.02646,2758.0,2757.8,0.29]
[1739559691662,40.8,2757.9,2757.8,1.84106]
[1739559691863,40.8,2757.9,2757.8,1.1161]
[1739559692061,41.52494,2757.9,2757.8,1.1161]
[1739559693171,41.52494,2757.9,2757.8,1.4061]
[1739559693663,0.72494,2757.9,2757.8,1.4061]
[1739559694758,41.63404,2757.9,2757.8,1.4061]
[1739559696465,41.63404,2757.9,2757.8,1.6964]
[1739559697872,0.72494,2757.9,2757.8,1.6964]
[1739559698171,3.75137,2758.0,2757.9,0.72494]
[1739559698971,3.75137,2758.0,2757.9,2.17524]
[1739559699373,3.02646,2758.0,2757.9,2.17524]
[1739559702167,3.75137,2758.0,2757.9,1.4503]
[1739559703567,3.75137,2758.0,2757.9,2.17524]
[1739559704070,3.02646,2758.0,2757.9,2.17524]
[1739559704883,3.2078,2758.3,2757.9,2.17524]
[1739559705070,3.93264,2758.3,2758.2,0.72486]
[1739559705575,0.72488,2758.2,2758.1,0.72486]
[1739559705972,0.72491,2758.0,2757.9,2.17522]
[1739559706172,3.93265,2758.3,2758.2,0.72486]
[1739559706374,3.93263,2758.3,2758.2,0.72486]
[1739559707370,41.5248,2758.4,2758.3,0.72483]
[1739559707970,0.72486,2758.2,2758.1,1.31256]
[1739559708875,41.52483,2758.4,2758.3,0.72483]
[1739559709175,0.72483,2758.3,2758.2,1.89474]
[1739559709479,0.72486,2758.2,2758.1,0.12059338]
[1739559709673,0.72494,2757.9,2757.8,1.6964]
[1739559709977,9.14047957,2757.9,2757.8,1.6964]
[1739559710366,49.94047957,2757.9,2757.8,1.6964]
[1739559710769,49.94047957,2757.9,2757.5,0.5317]
[1739559710770,0.72501,2757.6,2757.5,1.9822]
[1739559710972,6.70553957,2757.6,2757.1,0.00543734]
[1739559711265,0.72528,2756.6,2756.5,0.5867]
[1739559711477,0.72533,2756.4,2756.3,0.5834]
[1739559712174,0.72533,2756.4,2756.3,0.5804]
[1739559714970,44.01323734,2756.6,2756.3,1.30574]
[1739559715177,44.01323734,2756.6,2756.3,0.5804]
[1739559715178,0.7253,2756.5,2756.3,0.5804]
[1739559715676,0.00543734,2756.6,2756.3,0.5804]
[1739559715876,0.00543734,2756.6,2756.5,0.7253]
[1739559716381,0.00543734,2756.6,2756.5,1.3095]
[1739559717177,3.2078,2756.9,2756.5,0.5842]
[1739559717379,0.72523,2756.8,2756.6,0.72528]
[1739559717571,0.72523,2756.8,2756.7,0.5633]
[1739559718377,0.72523,2756.8,2756.5,1.30949]
[1739559718378,0.72528,2756.6,2756.5,0.5842]
[1739559718773,0.72528,2756.6,2756.3,1.1437]
[1739559718774,0.72533,2756.4,2756.3,1.1437]
[1739559719070,3.2078,2756.6,2756.3,1.1437]
[1739559719276,3.2078,2756.9,2756.3,1.1437]
[1739559719481,0.72523,2756.8,2756.3,1.1437]
[1739559719776,0.72528,2756.6,2756.3,1.1437]
[1739559720083,0.72526,2756.7,2756.3,1.1437]
[1739559720272,3.2078,2756.6,2756.4,0.5643]
[1739559720473,40.8,2756.8,2756.7,0.72525]
[1739559721072,3.21323734,2757.0,2756.6,3.49773957]
[1739559721276,0.00543734,2757.0,2756.9,4.22293957]
[1739559721883,0.00543734,2757.0,2756.9,1.3047]
[1739559722583,0.72503,2757.6,2757.1,1.81285]
[1739559722776,3.2078,2757.7,2756.9,4.07723957]
[1739559722777,0.72504,2757.5,2757.0,3.796]
[1739559723080,0.72504,2757.5,2757.4,0.72507]
[1739559723670,3.21323734,2757.7,2757.2,1.4507]
[1739559723874,3.21323734,2757.7,2757.4,0.72506]
[1739559724169,0.72504,2757.5,2757.4,0.72506]
[1739559724374,0.72503,2757.6,2757.5,0.2901]
[1739559724774,3.93823734,2757.7,2757.5,0.2901]
[1739559724974,3.21323734,2757.7,2757.6,0.72501]
[1739559725182,3.21323734,2757.7,2757.6,1.26211]
[1739559725381,40.8,2758.2,2758.1,0.72487]
[1739559725683,0.72491,2758.1,2757.9,0.72492]
[1739559725877,40.8,2758.2,2757.6,4.1081]
[1739559726079,40.8,2758.2,2758.1,0.72488]
[1739559726480,40.8,2758.2,2758.1,4.22261957]
[1739559726975,40.8,2758.2,2758.1,0.72488]
[1739559727178,0.00543734,2758.4,2758.1,3.49773957]
[1739559727378,0.00543734,2758.4,2758.3,0.72483]
[1739559728581,0.7246,2759.2,2759.0,0.72464]
[1739559728783,0.5836,2759.4,2758.7,6.70553957]
[1739559728983,1.30814,2759.4,2759.1,0.7246]
[1739559729391,0.72458,2759.3,2758.7,6.70553957]
[1739559729688,40.8,2759.1,2759.0,0.72465]
[1739559729881,40.8,2759.1,2759.0,3.93245]
[1739559731586,40.8,2759.1,2759.0,3.2078]
[1739559731786,0.72469,2758.9,2758.7,3.2078]
[1739559732082,40.8,2759.1,2758.7,3.2078]
[1739559732290,40.8,2759.1,2758.7,6.70553957]
[1739559732585,40.8,2759.1,2759.0,0.72465]
[1739559733388,41.52463,2759.1,2758.9,0.72466]
[1739559733783,40.8,2759.1,2758.7,3.2078]
[1739559733980,40.8,2759.1,2758.7,4.9168]
[1739559734185,41.52463,2759.1,2758.9,0.72465]
[1739559734382,41.52463,2759.1,2758.7,4.9168]
[1739559734383,40.8,2759.1,2758.7,4.9168]
[1739559734684,41.52463,2759.1,2758.7,6.3667]
[1739559734985,40.8,2759.1,2758.7,6.3667]
[1739559735290,40.8,2759.1,2759.0,0.72465]
[1739559735885,41.52462,2759.1,2759.0,0.72465]
[1739559736188,40.8,2759.1,2759.0,0.72465]
[1739559736987,41.52462,2759.1,2759.0,0.72465]
[1739559737386,40.8,2759.1,2758.7,6.3667]
[1739559737587,0.72467,2759.0,2758.9,0.72466]
[1739559738194,41.52463,2759.1,2759.0,0.72465]
[1739559738891,40.8,2759.1,2759.0,0.72465]
[1739559739593,40.8,2759.1,2759.0,1.01455]
[1739559739793,41.52462,2759.1,2759.0,1.01455]
[1739559739994,40.8,2759.1,2759.0,1.01455]
[1739559740299,41.52462,2759.1,2759.0,1.01455]
[1739559740889,41.52462,2759.1,2759.0,0.2899]
[1739559741288,41.52462,2759.1,2759.0,1.01455]
[1739559743295,40.8,2759.1,2759.0,1.01455]
[1739559743497,40.8,2759.1,2759.0,4.51225]
[1739559743989,41.52462,2759.1,2759.0,4.51225]
[1739559744387,40.8,2759.1,2759.0,4.51225]
[1739559745192,40.8,2759.1,2759.0,1.30445]
[1739559745497,41.52462,2759.1,2759.0,0.5798]
[1739559746089,40.8,2759.1,2759.0,1.30445]
[1739559746589,0.00356896,2759.3,2759.2,0.72459]
[1739559746892,0.72813896,2759.3,2759.2,0.72459]
[1739559747201,41.52813896,2759.3,2759.2,0.72459]
[1739559747586,0.72462,2759.1,2759.0,4.51221]
[1739559748291,0.72462,2759.1,2759.0,0.5798]
[1739559749288,41.52462,2759.1,2759.0,0.5798]
[1739559749599,41.52462,2759.1,2759.0,1.30445]
[1739559750094,41.52462,2759.1,2759.0,0.5798]
[1739559751400,41.52462,2759.1,2759.0,1.30445]
[1739559751896,40.8,2759.1,2759.0,1.30445]
[1739559752199,0.00356896,2759.3,2759.2,0.72459]
[1739559752494,41.52813896,2759.3,2759.2,0.72459]
[1739559752798,40.80356896,2759.3,2759.2,0.72459]
[1739559753000,0.00356896,2759.3,2759.2,0.72459]
[1739559753191,0.00356896,2759.3,2759.2,2.36429]
[1739559753593,0.00356896,2759.3,2759.1,3.2078]
[1739559753796,0.00356896,2759.3,2759.0,0.2899]
[1739559753993,0.72813896,2759.3,2759.2,0.72459]
[1739559754188,0.00356896,2759.3,2759.2,0.72459]
[1739559754495,0.00356896,2759.3,2759.0,0.2899]
[1739559754795,0.00356896,2759.3,2758.4,3.2078]
[1739559754796,3.2078,2759.1,2758.4,3.2078]
[1739559754998,0.72489,2758.1,2758.0,3.2078]
[1739559755203,4.49683133,2758.5,2758.0,3.2078]
[1739559755499,1.708,2758.5,2758.2,0.72485]
[1739559755797,1.708,2758.5,2758.0,3.2078]
[1739559755798,40.8,2758.4,2758.0,3.2078]
[1739559755995,40.8,2758.4,2758.3,0.72483]
[1739559756305,40.8,2758.4,2758.3,0.2665]
[1739559756603,41.5248,2758.4,2758.3,0.2665]
[1739559757496,40.8,2758.4,2758.3,0.99133]
[1739559758295,0.5693,2758.6,2758.3,3.4743]
[1739559758501,0.72465,2759.0,2758.8,0.72469]
[1739559758696,1.29395,2759.0,2758.8,0.72469]
[1739559758906,40.8,2758.9,2758.8,0.72469]
[1739559759398,0.00356896,2759.3,2758.6,3.2078]
[1739559759599,0.72463,2759.1,2758.8,0.72467]
[1739559759903,40.8,2759.0,2758.6,3.2078]
[1739559760103,0.00356896,2759.3,2758.9,3.2078]
[1739559760303,0.00356896,2759.3,2759.2,0.72459]
[1739559760491,40.80356896,2759.3,2759.2,0.72459]
[1739559761802,40.80356896,2759.3,2759.2,3.93239]
[1739559762397,0.00356896,2759.3,2759.2,3.93239]
[1739559764407,1.29861,2759.9,2759.2,3.93239]
[1739559764700,0.5742,2759.9,2759.5,0.7245]
[1739559764908,0.5742,2759.9,2759.4,3.2078]
[1739559764909,0.72447,2759.7,2759.4,3.2078]
[1739559765208,0.72447,2759.7,2759.5,0.72451]
[1739559765400,0.72445,2759.8,2759.6,0.72447]
[1739559765600,0.5742,2759.9,2759.7,0.72445]
[1739559765808,0.72445,2759.8,2759.6,0.72447]
[1739559766205,0.5742,2759.9,2759.4,4.6573]
[1739559766499,0.72444,2759.8,2759.6,0.72446]
[1739559766702,0.72444,2759.8,2759.7,0.72446]
[1739559767206,3.6879,2760.2,2759.8,0.72443]
[1739559767207,0.72442,2759.9,2759.8,0.72443]
[1739559767504,40.8,2759.9,2759.7,0.72444]
[1739559767708,0.72444,2759.8,2759.7,0.72444]
[1739559767907,41.52442,2759.9,2759.4,4.6573]
[1739559768206,40.8,2759.9,2759.8,0.72444]
[1739559768601,41.52441,2759.9,2759.8,0.562]
[1739559768798,0.72444,2759.8,2759.6,0.72447]
[1739559769005,40.8,2759.9,2759.5,1.707]
[1739559769206,0.72446,2759.8,2759.7,0.72446]
[1739559769401,40.8,2759.9,2759.5,1.707]
[1739559769603,0.72448,2759.7,2759.6,0.72448]
[1739559770007,0.72448,2759.7,2759.5,1.707]
[1739559770008,40.8,2759.9,2759.5,1.707]
[1739559770310,41.52443,2759.9,2759.8,0.72444]
[1739559770502,41.52443,2759.9,2759.4,7.03062]
[1739559770503,0.72446,2759.8,2759.4,5.2193]
[1739559770706,0.72449,2759.7,2759.6,0.72447]
[1739559770902,40.8,2759.9,2759.5,0.72451]
[1739559770903,0.72451,2759.6,2759.5,0.72451]
[1739559771500,45.0748,2759.9,2759.4,1.4495]
[1739559771703,1.30941,2759.5,2759.4,1.4495]
[1739559772102,0.72454,2759.4,2759.3,0.72998734]
[1739559772506,0.72454,2759.4,2759.3,0.00543734]
[1739559772697,0.72454,2759.4,2759.3,0.73000734]
[1739559772902,0.72454,2759.4,2759.3,0.00543734]
[1739559775009,1.20464,2759.4,2759.3,0.00543734]
[1739559775211,0.72454,2759.4,2759.3,0.00543734]
[1739559776404,0.5849,2759.5,2759.3,0.73000734]
[1739559776711,0.72451,2759.6,2759.5,0.72449]
[1739559776905,0.72454,2759.5,2759.4,0.72452]
[1739559778809,42.61103,2759.9,2759.3,0.00543734]
[1739559779006,0.72454,2759.5,2759.4,0.72452]
[1739559779411,1.81119,2759.7,2759.3,0.00543734]
[1739559779412,0.72454,2759.4,2759.3,0.00543734]
[1739559779609,0.72454,2759.4,2759.3,0.73000734]
[1739559780708,0.72454,2759.4,2759.3,0.00543734]
[1739559782704,0.72454,2759.4,2759.3,1.45503734]
[1739559783309,0.72454,2759.4,2759.3,1.74493734]
[1739559783914,3.93234,2759.4,2759.3,1.74493734]
[1739559785415,0.7247,2758.8,2758.7,3.9325]
[1739559785617,0.4584,2758.8,2758.7,3.9325]
[1739559785914,41.2584,2758.8,2758.7,3.9325]
[1739559786815,41.2584,2758.8,2758.7,0.1526]
[1739559790126,2.40495,2758.5,2757.9,0.5712]
[1739559790421,0.72481,2758.4,2758.1,2.78906291]